bitfinex/quotes_SOLUSD_20250403
["timestamp","ask_amount","ask_price","bid_price","bid_amount"]
[1743675250139,31.36354384,118.04,118.01,325.5735]
[1743675250532,31.36354384,118.03,118.01,317.1]
[1743675250939,31.36354384,118.02,118.01,317.1]
[1743675252343,39.97880541,118.02,117.99,0.03]
[1743675252543,31.36354384,118.0,117.99,0.03]
[1743675254030,137.7,118.02,117.99,0.03]
[1743675254344,137.7,118.02,117.99,39.86864384]
[1743675254541,2.0,118.02,118.01,0.063]
[1743675257158,33.36354384,118.02,118.01,0.063]
[1743675257347,2.0,118.02,118.01,0.063]
[1743675257649,33.36354384,118.02,118.01,0.063]
[1743675257871,2.0,118.02,118.01,0.063]
[1743675259037,33.36354384,118.02,118.01,0.063]
[1743675259237,2.0,118.02,118.01,0.063]
[1743675260345,2.0,118.02,118.01,18.71264886]
[1743675260530,2.0,118.02,118.01,50.0761927]
[1743675260737,2.0,118.02,118.01,53.18644886]
[1743675260941,2.0,118.02,118.01,27.18644886]
[1743675261435,2.0,118.02,118.01,58.5499927]
[1743675261937,2.0,118.02,118.01,26.063]
[1743675262150,2.0,118.02,118.01,34.5368]
[1743675263456,2.0,118.02,118.01,26.063]
[1743675263943,33.36354384,118.02,118.01,0.063]
[1743675264641,83.51264925,118.02,118.01,0.063]
[1743675264846,31.36354384,118.0,117.99,0.03]
[1743675265436,39.83804384,118.0,117.99,0.03]
[1743675265736,39.98020541,118.0,117.99,0.03]
[1743675267047,40.26452855,118.0,117.99,0.03]
[1743675267554,39.98020541,118.0,117.99,0.03]
[1743675271865,47.94020541,118.0,117.99,0.03]
[1743675274064,48.22452855,118.0,117.99,0.03]
[1743675275648,36.48531061,118.0,117.99,0.03]
[1743675276162,36.48531061,118.0,117.95,0.063]
[1743675276163,0.42648471,117.99,117.95,0.063]
[1743675276365,39.2486518,117.96,117.95,0.063]
[1743675276670,27.68648747,117.96,117.95,0.063]
[1743675277262,47.31081337,117.96,117.95,0.063]
[1743675277644,206.59404049,117.96,117.95,0.063]
[1743675278267,215.07144049,117.96,117.95,0.063]
[1743675278469,215.35576363,117.96,117.95,0.063]
[1743675278847,215.07144049,117.96,117.95,0.063]
[1743675280164,207.15144049,117.96,117.95,0.063]
[1743675280356,215.05144049,117.96,117.95,0.063]
[1743675282548,215.33576363,117.96,117.95,0.0001]
[1743675282767,79.63576363,117.96,117.95,0.0001]
[1743675282972,81.63576363,117.96,117.94,0.063]
[1743675283157,31.41593946,117.95,117.94,0.063]
[1743675284167,31.84242417,117.95,117.94,0.063]
[1743675284548,58.97017303,117.95,117.94,0.0001]
[1743675287452,40.03620103,117.95,117.94,0.0001]
[1743675287651,47.87620103,117.95,117.94,0.0001]
[1743675288059,39.39810103,117.95,117.94,0.0001]
[1743675288552,47.87620103,117.95,117.94,0.0001]
[1743675289869,2.0,117.96,117.94,0.0001]
[1743675290381,31.41593946,117.95,117.94,0.0001]
[1743675290681,31.44593946,117.95,117.94,0.0001]
[1743675295377,0.03,117.95,117.94,0.0001]
[1743675295554,0.03,117.95,117.94,76.06568832]
[1743675295754,0.03,117.95,117.94,84.03918832]
[1743675296279,0.03,117.95,117.94,92.51798832]
[1743675296464,0.03,117.95,117.94,84.03918832]
[1743675296977,0.03,117.95,117.94,66.51798832]
[1743675297861,2.0,117.96,117.95,0.28432314]
[1743675298178,2.0,117.96,117.95,337.29472197]
[1743675298478,2.0,117.96,117.95,345.77282197]
[1743675299152,2.0,117.96,117.95,355.66004769]
[1743675299353,2.0,117.96,117.95,317.4]
[1743675299575,2.0,117.96,117.95,337.01039883]
[1743675300197,2.0,117.96,117.95,345.48849883]
[1743675300775,2.0,117.96,117.95,364.42247083]
[1743675301157,2.0,117.96,117.95,337.01039883]
[1743675301358,2.0,117.96,117.95,317.4]
[1743675301584,10.4774,117.96,117.95,317.4]
[1743675301764,30.08779883,117.96,117.95,317.4]
[1743675301971,30.2299604,117.96,117.95,317.4]
[1743675302698,2.03,117.96,117.95,317.4]
[1743675302869,2.03,117.96,117.94,28.08919883]
[1743675303075,2.03,117.96,117.95,19.61039883]
[1743675303280,4.03,117.96,117.95,38.26004769]
[1743675303771,4.03,117.96,117.95,38.54437083]
[1743675305098,4.03,117.96,117.95,46.73814769]
[1743675306393,4.03,117.96,117.95,47.02247083]
[1743675308590,4.03,117.96,117.95,55.01817083]
[1743675310071,4.03,117.96,117.95,35.407772]
[1743675310275,4.03,117.96,117.95,55.01817083]
[1743675310477,10.4749,118.0,117.96,18.64964886]
[1743675310478,2.0,118.0,117.96,18.64964886]
[1743675310681,2.0,118.0,117.99,38.26004769]
[1743675311278,2.0,118.0,117.99,38.54437083]
[1743675311884,2.0,118.0,117.99,47.01957083]
[1743675312394,2.0,118.0,117.99,51.16897083]
[1743675313396,0.0001,118.0,117.99,59.2933324]
[1743675314576,2.0001,118.0,117.99,59.2933324]
[1743675314779,2.0001,118.0,117.99,59.15117083]
[1743675316712,2.0001,118.0,117.99,39.540772]
[1743675316886,2.0001,118.0,117.99,50.67597083]
[1743675317198,2.0001,118.0,117.99,59.15117083]
[1743675318981,2.0001,118.0,117.99,59.2933324]
[1743675320213,0.0001,118.0,117.99,59.2933324]
[1743675320385,0.03,118.07,118.03,26.0]
[1743675320578,0.03,118.07,118.06,19.61039883]
[1743675320791,0.03,118.07,118.04,18.933972]
[1743675321103,0.03,118.07,118.06,38.26004769]
[1743675322092,0.03,118.07,118.06,18.64964886]
[1743675322685,0.03,118.07,118.06,38.26004769]
[1743675323703,0.03,118.07,118.05,19.61039883]
[1743675323886,0.03,118.07,118.04,18.64964886]
[1743675324090,28.11029883,118.07,118.03,19.61039883]
[1743675324490,19.64039883,118.07,118.03,28.08269883]
[1743675324695,0.03,118.07,118.03,28.08269883]
[1743675325495,0.03,118.07,118.05,19.61039883]
[1743675325703,0.03,118.07,118.06,38.26004769]
[1743675326094,0.03,118.07,118.06,47.01457083]
[1743675328109,0.03,118.07,118.06,38.26004769]
[1743675328415,0.03,118.07,118.05,336.73039883]
[1743675328791,19.64039883,118.07,118.05,317.12]
[1743675329320,0.03,118.07,118.05,317.12]
[1743675329611,19.64039883,118.07,118.05,317.12]
[1743675330110,28.11009883,118.07,118.05,317.12]
[1743675330610,19.61039883,118.06,118.05,317.12]
[1743675331028,19.7525604,118.06,118.05,317.12]
[1743675332123,28.2227604,118.06,118.05,317.12]
[1743675332609,28.2227604,118.06,118.0,38.26004769]
[1743675332791,7.66,118.05,118.0,18.64964886]
[1743675332986,19.61039883,118.04,118.0,18.64964886]
[1743675334322,28.08279883,118.03,117.99,348.88499883]
[1743675334522,19.61039883,118.01,117.99,317.143]
[1743675334698,19.61039883,118.0,117.99,317.143]
[1743675335102,23.6740604,118.0,117.99,0.063]
[1743675336195,32.43288354,118.0,117.99,0.0001]
[1743675336938,26.0,117.97,117.94,0.0001]
[1743675337218,19.61039883,117.95,117.94,0.0001]
[1743675338293,28.08849883,117.95,117.94,0.0001]
[1743675338499,19.61039883,117.95,117.94,0.0001]
[1743675340919,28.2306604,117.95,117.94,0.0001]
[1743675342252,32.42178354,117.95,117.94,0.0001]
[1743675342449,34.62316157,117.91,117.9,0.03]
[1743675342607,197.5935604,117.91,117.9,0.03]
[1743675343837,217.48828237,117.91,117.9,0.03]
[1743675344120,197.87788354,117.91,117.9,0.03]
[1743675344313,197.5935604,117.91,117.9,0.03]
[1743675344912,189.1125604,117.91,117.9,0.03]
[1743675346222,196.4504677,117.91,117.9,0.03]
[1743675348024,168.2169073,117.91,117.9,0.03]
[1743675348228,160.5569073,117.91,117.9,0.03]
[1743675348408,180.16730613,117.91,117.9,0.03]
[1743675348614,135.7,117.91,117.9,0.03]
[1743675349357,19.7525604,117.94,117.9,0.03]
[1743675349536,19.61039883,117.93,117.9,0.03]
[1743675349842,19.61039883,117.91,117.9,0.03]
[1743675350314,19.64039883,117.91,117.9,0.03]
[1743675351741,0.03,117.91,117.9,0.03]
[1743675352217,0.03,117.91,117.9,19.64039883]
[1743675352628,0.03,117.91,117.9,28.12209883]
[1743675352950,0.03,117.91,117.9,46.77174769]
[1743675353120,0.03,117.91,117.9,27.16134886]
[1743675353319,0.03,117.91,117.9,46.77174769]
[1743675353847,0.03,117.91,117.9,47.05607083]
[1743675354017,0.03,117.91,117.9,46.77174769]
[1743675354546,0.03,117.91,117.9,8.5117]
[1743675356267,0.03,117.91,117.9,58.57407884]
[1743675356461,0.03,117.91,117.9,58.85840198]
[1743675357263,0.03,117.91,117.9,67.21280198]
[1743675359263,0.03,117.91,117.9,98.62553196]
[1743675359470,8.68236157,117.99,117.9,98.62553196]
[1743675359471,31.41272998,117.99,117.94,31.41272998]
[1743675360861,47.56812998,117.99,117.94,31.41272998]
[1743675361169,31.41272998,117.98,117.94,31.41272998]
[1743675361666,31.41272998,117.98,117.95,8.4781]
[1743675361891,31.41272998,117.96,117.92,317.44]
[1743675362042,31.41272998,117.95,117.92,317.44]
[1743675362242,39.09272998,117.95,117.92,317.44]
[1743675363284,39.09272998,117.95,117.91,39.89362998]
[1743675363489,39.09272998,117.95,117.91,31.41272998]
[1743675363666,39.09272998,117.95,117.9,70.97617884]
[1743675363993,7.68,117.95,117.9,70.97617884]
[1743675364157,39.09272998,117.95,117.9,70.97617884]
[1743675364356,47.57102998,117.95,117.9,70.97617884]
[1743675365278,16.1583,117.95,117.91,31.41272998]
[1743675365483,7.68,117.95,117.91,31.41272998]
[1743675365862,7.68,117.95,117.92,8.4803]
[1743675366282,7.68,117.95,117.92,39.89302998]
[1743675367589,2.0,117.95,117.93,31.41272998]
[1743675367887,2.0,117.95,117.94,8.4788]
[1743675368081,2.0,117.95,117.94,58.54117884]
[1743675369673,0.03,117.98,117.95,18.64964886]
[1743675369882,0.03,117.98,117.97,58.53907884]
[1743675371974,0.03,117.98,117.95,4.2731]
[1743675372178,0.03,117.98,117.95,44.16352998]
[1743675372862,0.03,117.98,117.95,44.16382998]
[1743675373366,0.03,117.98,117.95,31.41272998]
[1743675373568,31.44272998,117.98,117.93,31.41272998]
[1743675373785,31.41272998,117.96,117.92,27.12974886]
[1743675373972,47.61902998,117.98,117.94,31.41272998]
[1743675374281,7.73,117.98,117.95,31.41272998]
[1743675374460,0.03,117.98,117.96,31.41272998]
[1743675374660,0.03,117.98,117.97,31.41272998]
[1743675374962,0.03,117.98,117.97,50.34670198]
[1743675375271,0.03,117.98,117.97,371.75040198]
[1743675376079,0.03,117.98,117.97,380.22710198]
[1743675376777,0.0001,117.98,117.97,380.22710198]
[1743675376976,0.0001,117.98,117.97,384.52335562]
[1743675377765,0.0001,117.98,117.97,380.36926355]
[1743675378479,0.0001,117.98,117.97,380.22710198]
[1743675378782,0.0001,117.98,117.97,375.87907884]
[1743675380878,0.0001,117.98,117.97,344.46634886]
[1743675381197,0.0001,117.98,117.97,375.87907884]
[1743675382285,0.0001,117.98,117.97,325.8167]
[1743675382685,0.0001,117.98,117.97,317.34]
[1743675383488,0.0001,117.98,117.97,325.8167]
[1743675383675,0.0001,117.98,117.97,375.87907884]
[1743675384485,0.0001,117.98,117.97,376.16340198]
[1743675385690,0.0001,117.98,117.97,376.30556355]
[1743675386081,0.0001,117.98,117.97,382.89864888]
[1743675386278,0.0001,117.98,117.97,344.750672]
[1743675386492,0.0001,117.98,117.97,376.16340198]
[1743675386901,0.0001,117.98,117.97,376.30556355]
[1743675387093,0.0001,117.98,117.97,384.77996355]
[1743675388093,0.0001,117.98,117.97,391.64170531]
[1743675389096,0.0001,117.98,117.97,360.22897533]
[1743675390799,0.03,118.03,117.98,19.07613357]
[1743675391576,0.03,118.03,118.01,31.41272998]
[1743675391798,0.03,118.03,118.01,19.59447087]
[1743675392496,0.03,118.03,118.02,8.4731]
[1743675393200,0.03,118.03,118.01,28.06787087]
[1743675393803,0.03,118.03,117.99,8.4752]
[1743675394104,19.62447087,118.03,117.99,8.4752]
[1743675394276,19.59447087,118.02,117.99,8.4752]
[1743675394901,28.09727087,118.03,117.99,8.4752]
[1743675395773,0.03,118.03,117.99,28.06967087]
[1743675395978,0.03,118.03,118.0,19.59447087]
[1743675396398,0.03,118.03,117.99,29.6634]
[1743675396399,0.03,118.03,118.01,38.24411973]
[1743675396782,0.03,118.03,118.01,46.71721973]
[1743675398290,0.03,118.03,118.01,27.12274886]
[1743675398605,19.59447087,118.02,117.99,8.4752]
[1743675399714,19.59447087,118.02,117.98,27.18824886]
[1743675401295,28.06757087,118.02,117.98,0.063]
[1743675401606,28.06757087,118.02,117.98,8.5389]
[1743675401794,19.59447087,118.01,117.98,8.5389]
[1743675402497,19.59447087,118.01,117.98,0.063]
[1743675402699,19.59447087,118.01,117.98,8.5387]
[1743675402905,19.59447087,118.01,117.98,0.063]
[1743675403212,28.06847087,118.01,117.98,0.063]
[1743675403410,19.59447087,118.01,117.98,0.063]
[1743675403809,4.145,118.02,117.98,38.30711973]
[1743675404007,27.32447087,118.03,117.99,19.59447087]
[1743675404216,0.03,118.03,118.0,19.59447087]
[1743675404517,0.03,118.03,118.01,19.59447087]
[1743675404713,0.03,118.03,118.0,19.59447087]
[1743675405217,19.62447087,118.03,117.98,18.71264886]
[1743675405418,19.59447087,118.02,117.98,0.063]
[1743675405901,19.59447087,118.02,117.98,19.65747087]
[1743675406305,19.59447087,118.02,117.98,8.5386]
[1743675406608,28.06807087,118.02,117.98,0.063]
[1743675407722,39.84368656,118.02,117.98,8.539]
[1743675408091,40.01484813,118.03,117.98,39.90908656]
[1743675409523,39.84318656,118.02,117.98,8.539]
[1743675410016,31.37008656,118.02,117.98,8.539]
[1743675411127,0.03,118.03,117.99,31.37008656]
[1743675411729,0.03,118.03,117.99,39.84478656]
[1743675413799,31.37008656,118.02,117.98,0.063]
[1743675414304,31.37008656,118.02,117.98,8.5389]
[1743675414714,31.37008656,118.02,117.98,0.063]
[1743675414899,31.37008656,118.01,117.98,0.063]
[1743675415417,39.84528656,117.99,117.98,0.063]
[1743675415602,39.98744813,117.99,117.98,0.063]
[1743675418300,40.27177127,117.99,117.97,0.063]
[1743675418500,62.74017312,117.98,117.97,0.063]
[1743675418896,31.37008656,117.98,117.97,0.063]
[1743675419121,39.84608656,117.98,117.97,0.063]
[1743675419335,8.476,117.98,117.97,0.063]
[1743675419616,31.37008656,117.99,117.97,0.063]
[1743675420004,39.84518656,118.0,117.97,0.063]
[1743675420318,31.37008656,118.01,117.97,31.43308656]
[1743675420508,2.0,118.02,117.97,31.43308656]
[1743675420509,33.37008656,118.02,117.97,31.43308656]
[1743675421218,2.0,118.02,118.0,50.01973542]
[1743675421943,2.0,118.02,118.01,50.01973542]
[1743675422104,2.0,118.02,118.01,50.44622013]
[1743675422409,0.03,118.03,118.02,30.92883357]
[1743675422615,0.03,118.03,118.02,93.52684512]
[1743675422922,0.03,118.03,118.02,62.15675856]
[1743675423115,0.03,118.03,118.02,70.34553542]
[1743675423327,0.03,118.03,118.02,58.49283542]
[1743675424513,0.03,118.03,118.02,27.12274886]
[1743675425329,0.03,118.03,118.01,31.37008656]
[1743675425542,0.03,118.03,118.01,18.64964886]
[1743675426314,0.03,118.03,118.0,38.99008656]
[1743675426633,0.03,118.03,118.0,39.84458656]
[1743675426949,0.03,118.03,118.01,50.01973542]
[1743675428139,0.03,118.03,118.01,18.64964886]
[1743675428325,0.03,118.03,118.0,39.84458656]
[1743675428637,0.03,118.03,118.0,18.64964886]
[1743675428834,31.40008656,118.03,117.98,31.37008656]
[1743675429040,31.40008656,118.03,117.98,8.4757]
[1743675429041,31.37008656,118.02,117.98,8.4757]
[1743675429429,31.37008656,118.02,117.98,39.84578656]
[1743675429629,0.03,118.03,117.99,31.37008656]
[1743675429833,0.03,118.03,118.0,31.37008656]
[1743675430142,0.03,118.03,117.99,18.64964886]
[1743675430357,0.03,118.03,118.0,31.37008656]
[1743675431332,0.03,118.03,118.01,31.37008656]
[1743675432843,0.03,118.03,118.01,39.84348656]
[1743675433262,31.40008656,118.03,117.98,31.37008656]
[1743675433555,31.37008656,118.02,117.98,8.4756]
[1743675434762,39.87288656,118.03,117.98,39.84568656]
[1743675435062,39.87288656,118.03,118.0,0.063]
[1743675436855,31.40008656,118.03,118.0,0.063]
[1743675437032,0.03,118.03,118.0,31.43308656]
[1743675437229,0.03,118.03,118.01,50.01973542]
[1743675438337,0.03,118.03,118.0,0.063]
[1743675438548,31.40008656,118.03,118.0,0.063]
[1743675438731,31.37008656,118.02,118.0,0.063]
[1743675438930,39.87278656,118.03,118.0,0.063]
[1743675439734,31.37008656,118.02,118.0,0.063]
[1743675440544,8.5027,118.03,118.0,0.063]
[1743675440545,31.37008656,118.01,118.0,0.063]
[1743675440756,31.51224813,118.01,118.0,0.063]
[1743675441141,39.98604813,118.01,118.0,0.063]
[1743675442049,58.92002013,118.01,118.0,0.0001]
[1743675442450,58.92002013,118.01,117.97,0.063]
[1743675442451,26.14216157,117.98,117.97,0.063]
[1743675442750,65.11224813,117.98,117.97,0.063]
[1743675442949,69.21354813,117.98,117.97,0.063]
[1743675443753,77.68954813,117.98,117.97,0.063]
[1743675444340,77.97387127,117.98,117.97,0.063]
[1743675444733,0.42648471,117.97,117.91,0.063]
[1743675444940,31.37008656,117.94,117.91,0.063]
[1743675445842,39.84918656,117.94,117.91,0.063]
[1743675446155,31.37008656,117.92,117.91,0.063]
[1743675447164,31.37008656,117.93,117.91,0.063]
[1743675447334,31.37008656,117.92,117.91,0.063]
[1743675447540,31.51224813,117.92,117.91,0.063]
[1743675447947,39.99254813,117.92,117.91,0.063]
[1743675448348,40.27687127,117.92,117.91,0.063]
[1743675449749,0.14216157,117.91,117.9,0.03]
[1743675449954,71.36333469,117.91,117.9,0.03]
[1743675450652,110.29730669,117.91,117.9,0.0001]
[1743675453168,31.51224813,117.91,117.9,0.0001]
[1743675453347,39.99324813,117.91,117.9,0.0001]
[1743675453851,31.51224813,117.91,117.9,0.0001]
[1743675455357,33.51224813,117.91,117.9,0.0001]
[1743675456570,33.37008656,117.91,117.9,0.0001]
[1743675456766,2.0,117.91,117.9,0.0001]
[1743675456984,2.0,117.91,117.9,50.01983542]
[1743675457853,0.0001,117.91,117.9,367.78415856]
[1743675458049,0.0001,117.91,117.9,399.15424512]
[1743675458765,0.0001,117.91,117.9,407.63594512]
[1743675458964,0.0001,117.91,117.9,376.26585856]
[1743675460252,31.37008656,117.97,117.93,31.37008656]
[1743675460667,31.37008656,117.97,117.94,8.4788]
[1743675462455,31.37008656,117.98,117.94,8.4788]
[1743675462650,31.37008656,117.98,117.94,39.84888656]
[1743675462855,31.37008656,117.99,117.94,39.84888656]
[1743675464561,31.37008656,117.97,117.93,27.12884886]
[1743675465077,31.37008656,117.96,117.92,8.4799]
[1743675465961,38.97008656,117.96,117.92,8.4799]
[1743675466148,31.37008656,117.95,117.92,8.4799]
[1743675466354,31.37008656,117.95,117.91,27.13024886]
[1743675467066,38.97008656,117.96,117.91,58.50033542]
[1743675467777,7.6,117.96,117.93,50.01973542]
[1743675468455,38.97008656,117.96,117.92,31.37008656]
[1743675468779,47.44758656,117.96,117.91,58.50033542]
[1743675469691,31.37008656,117.95,117.91,58.50033542]
[1743675470177,31.37008656,117.95,117.91,8.4806]
[1743675470687,39.84828656,117.95,117.91,8.5106]
[1743675471388,31.37008656,117.93,117.91,0.03]
[1743675473267,38.95008656,117.92,117.91,0.03]
[1743675474384,7.58,117.92,117.91,0.03]
[1743675477888,47.57254813,117.92,117.91,0.03]
[1743675478267,183.27254813,117.92,117.91,0.03]
[1743675480494,47.85687127,117.92,117.91,0.03]
[1743675484169,2.0,117.93,117.91,0.03]
[1743675484375,9.58,117.93,117.91,0.03]
[1743675485309,2.0,117.93,117.91,0.03]
[1743675485485,2.0,117.93,117.91,31.40008656]
[1743675485806,2.0,117.93,117.92,19.62503514]
[1743675485979,2.0,117.93,117.91,0.03]
[1743675489003,2.0,117.93,117.91,31.44192238]
[1743675489516,2.0,117.93,117.91,0.03]
[1743675492313,10.4797,117.93,117.91,0.03]
[1743675492514,0.14216157,117.92,117.91,0.03]
[1743675492813,31.55408395,117.92,117.91,0.03]
[1743675492986,40.03438395,117.92,117.91,0.03]
[1743675494544,40.31870709,117.92,117.91,0.03]
[1743675495507,26.14216157,117.88,117.87,0.0229]
[1743675495677,65.13408395,117.88,117.87,0.0229]
[1743675495887,0.14216157,117.87,117.86,0.03]
[1743675496076,35.56588395,117.87,117.86,0.03]
[1743675497116,31.83840709,117.87,117.86,0.03]
[1743675497405,40.32230709,117.87,117.86,0.03]
[1743675499411,63.15686769,117.87,117.86,0.03]
[1743675501192,63.15686769,117.87,117.86,0.0001]
[1743675501404,39.07613357,117.86,117.85,0.03]
[1743675501593,70.48805595,117.86,117.85,0.03]
[1743675501995,39.43840709,117.86,117.85,0.03]
[1743675502200,39.15408395,117.86,117.85,0.03]
[1743675502717,39.43840709,117.86,117.85,0.03]
[1743675502912,39.29624552,117.86,117.85,0.03]
[1743675503107,39.43840709,117.86,117.85,0.03]
[1743675503313,47.92300709,117.86,117.85,0.03]
[1743675505011,86.57265595,117.86,117.85,0.03]
[1743675505811,47.92300709,117.86,117.85,0.03]
[1743675506008,39.15408395,117.86,117.85,0.03]
[1743675506208,31.55408395,117.86,117.85,0.03]
[1743675506416,39.13408395,117.86,117.85,0.03]
[1743675506602,31.55408395,117.86,117.85,0.03]
[1743675506913,31.41192238,117.86,117.85,0.03]
[1743675507217,38.99192238,117.87,117.85,0.03]
[1743675507603,39.05492238,117.87,117.85,0.03]
[1743675507805,19.65520294,117.86,117.85,0.03]
[1743675508105,19.79736451,117.86,117.85,0.03]
[1743675508919,28.28196451,117.86,117.85,0.03]
[1743675509431,28.56628765,117.86,117.85,0.03]
[1743675509929,40.38296768,117.86,117.85,0.03]
[1743675511805,40.09864454,117.86,117.85,0.03]
[1743675512021,40.38296768,117.86,117.85,0.03]
[1743675513617,42.38296768,117.86,117.85,0.03]
[1743675514406,81.03261654,117.86,117.85,0.0001]
[1743675517225,42.38296768,117.86,117.85,0.0001]
[1743675518747,42.09864454,117.86,117.85,0.0001]
[1743675519111,2.0,117.86,117.85,0.0001]
[1743675521328,2.0,117.86,117.85,43.58038297]
[1743675521528,2.0,117.86,117.85,62.23003183]
[1743675522823,2.0,117.86,117.85,30.75814886]
[1743675523133,2.0,117.86,117.85,12.1085]
[1743675524833,2.0,117.86,117.85,0.0001]
[1743675525035,41.95648297,117.86,117.85,0.0001]
[1743675525236,10.4846,117.86,117.85,0.0001]
[1743675526326,2.0,117.86,117.85,0.0001]
[1743675529623,10.4846,117.86,117.85,0.0001]
[1743675530128,2.0,117.86,117.85,0.0001]
[1743675530947,10.4846,117.86,117.85,0.0001]
[1743675531143,2.0,117.86,117.85,0.0001]
[1743675531347,2.0,117.86,117.85,38.30452485]
[1743675531738,2.0,117.86,117.85,18.64974886]
[1743675532957,2.0,117.86,117.85,0.0001]
[1743675534565,30.13937599,117.86,117.85,0.0001]
[1743675534752,30.28153756,117.86,117.85,0.0001]
[1743675535124,30.5658607,117.86,117.85,0.0001]
[1743675538457,0.14216157,117.85,117.84,0.0001]
[1743675538746,39.45171355,117.85,117.84,0.0001]
[1743675540261,58.38568555,117.85,117.84,0.0001]
[1743675540576,48.22133669,117.85,117.84,0.0001]
[1743675540749,50.22133669,117.85,117.84,0.0001]
[1743675541148,30.5665607,117.85,117.84,0.0001]
[1743675543638,50.22133669,117.85,117.84,0.0001]
[1743675548762,68.87098555,117.85,117.83,0.0001]
[1743675548963,26.42648471,117.83,117.82,0.03]
[1743675549149,53.6012607,117.83,117.82,0.03]
[1743675549988,61.80373756,117.83,117.82,0.03]
[1743675550154,53.17477599,117.83,117.82,0.03]
[1743675550977,2.0,117.85,117.82,4.0615]
[1743675551145,21.65477599,117.85,117.82,4.0615]
[1743675551652,19.65477599,117.84,117.82,4.0615]
[1743675552468,28.14077599,117.84,117.82,4.0615]
[1743675552870,19.65477599,117.83,117.82,0.03]
[1743675553364,28.14077599,117.84,117.82,0.03]
[1743675553670,19.65477599,117.84,117.82,0.03]
[1743675554361,28.14087599,117.84,117.82,0.03]
[1743675554762,19.65477599,117.84,117.82,0.03]
[1743675556663,28.14087599,117.84,117.82,0.03]
[1743675557449,19.65477599,117.83,117.82,0.03]
[1743675557971,28.14157599,117.83,117.82,0.03]
[1743675559460,28.28373756,117.83,117.82,0.03]
[1743675560673,30.28373756,117.83,117.82,0.03]
[1743675561267,37.80373756,117.83,117.82,0.03]
[1743675562269,38.0880607,117.83,117.82,0.03]
[1743675563658,37.66157599,117.83,117.82,0.03]
[1743675564059,37.80373756,117.83,117.82,0.03]
[1743675568975,29.17477599,117.83,117.82,0.03]
[1743675569186,2.0,117.83,117.82,0.03]
[1743675570578,14.58600037,117.83,117.82,0.03]
[1743675570777,2.0,117.83,117.82,0.03]
[1743675570987,2.0,117.83,117.82,8.5175]
[1743675571364,2.0,117.83,117.82,0.03]
[1743675574173,14.58600037,117.83,117.82,0.03]
[1743675574574,23.21496194,117.83,117.82,0.03]
[1743675578878,23.27796194,117.83,117.82,0.03]
[1743675579188,10.69196157,117.83,117.82,0.03]
[1743675579390,23.27796194,117.83,117.82,0.03]
[1743675582092,159.26228508,117.83,117.82,0.03]
[1743675583874,23.56228508,117.83,117.82,0.03]
[1743675584393,23.27796194,117.83,117.82,0.03]
[1743675584610,25.27796194,117.83,117.82,0.03]
[1743675584791,16.64900037,117.83,117.82,0.03]
[1743675584982,4.063,117.83,117.82,0.03]
[1743675585472,16.64900037,117.83,117.82,0.03]
[1743675586191,25.13580037,117.83,117.82,0.03]
[1743675587988,4.063,117.83,117.82,0.03]
[1743675588189,25.13580037,117.83,117.82,0.03]
[1743675589181,4.063,117.83,117.82,0.03]
[1743675590284,16.64900037,117.83,117.82,0.03]
[1743675590589,25.27796194,117.83,117.82,0.03]
[1743675591596,32.75796194,117.83,117.82,0.03]
[1743675596585,168.45796194,117.83,117.82,0.03]
[1743675597397,168.74228508,117.83,117.82,0.03]
[1743675598601,168.45796194,117.83,117.82,0.03]
[1743675600104,168.74228508,117.83,117.82,0.03]